[Event "1st Bella Italia International 2022"]
[Site "Lignano"]
[Date "2022.08.21"]
[Round "7.16"]
[White "Montorsi, Matteo"]
[Black "Arana Garate, Jon"]
[Result "0-1"]
[ECO "B11"]
[WhiteElo "2100"]
[BlackElo "1933"]
[Annotator "NA RC"]
[PlyCount "108"]
[EventDate "2022.08.18"]
[EventCountry "ITA"]
[SourceTitle "playchess.com"]
[Source "ChessBase"]
[SourceQuality "1"]
[TimeControl "5400+30"]

1. e4 {[%emt 0:00:03]} c6 {[%emt 0:00:06]} 2. Nc3 {[%emt 0:00:04]} d5 {[%emt 0:00:22]} 3. Nf3 {[%emt 0:00:05]} Bg4 {[%emt 0:00:21]} 4. h3 {[%emt 0:00:05]} Bxf3 {[%emt 0:00:07]} 5. Qxf3 {[%emt 0:00:02]} e6 {[%emt 0:00:08]} 6. Be2 {[%emt 0:00:12]} Nf6 {[%emt 0:01:13]} 7. O-O {[%emt 0:01:48]} Be7 {[%emt 0:02:44]} 8. d3 {[%emt 0:00:45]} Nbd7 {[%emt 0:00:22]} 9. Qg3 {[%emt 0:00:29]} g6 {[%emt 0:06:02]} 10. a3 {[%emt 0:11:18]} h5 {[%emt 0:08:31]} 11. Bg5 {[%emt 0:05:49]} d4 {[%emt 0:06:37]} 12. Bxf6 {[%emt 0:01:08]} Nxf6 {[%emt 0:01:16]} 13. Nb1 {[%emt 0:01:27]} h4 {[%emt 0:07:58]} 14. Qf4 {[%emt 0:03:04]} Nh5 {[%emt 0:14:06]} 15. Bxh5 {[%emt 0:09:13]} Rxh5 {[%emt 0:00:16]} 16. Qf3 {[%emt 0:02:32]} Qc7 {[%emt 0:02:46]} 17. Nd2 {[%emt 0:02:51]} Rh7 {[%emt 0:02:33]} 18. c3 {[%emt 0:05:06]} O-O-O {[%emt 0:01:44]} 19. Nb3 {[%emt 0:14:39]} g5 {[%emt 0:01:07]} 20. Nxd4 {[%emt 0:05:46]} g4 {[%emt 0:06:34]} 21. Qxg4 {[%emt 0:06:54]} c5 {[%emt 0:09:54]} 22. Nf3 {[%emt 0:03:28]} Bf6 {[%emt 0:01:17]} 23. d4 {[%emt 0:03:56]} Rg7 {[%emt 0:00:24]} 24. Qh5 {[%emt 0:00:42]} Qf4 {[%emt 0:04:26]} 25. Qxc5+ {[%emt 0:09:27]} Kb8 {[%emt 0:00:07]} 26. Ne1 {[%emt 0:00:14]} Rdg8 {[%emt 0:22:29]} 27. Rd1 {[%emt 0:06:36]} Rg5 {[%emt 0:00:00]} 28. Qxg5 {[%emt 0:05:16]} Qxg5 {[%emt 0:00:00]} 29. Rd3 {[%emt 0:01:28]} Qc1 {[%emt 0:00:00]} 30. Rf3 {[%emt 0:00:01]} Bd8 {[%emt 0:00:00]} 31. Nd3 {[%emt 0:00:10]} Qg5 {[%emt 0:00:00]} 32. g3 {[%emt 0:01:05]} Qg6 {[%emt 0:00:00]} 33. Re1 {[%emt 0:00:33]} hxg3 {[%emt 0:00:00]} 34. fxg3 {[%emt 0:00:37]} Qh7 {[%emt 0:00:33]} 35. Kg2 {[%emt 0:00:21]} Rh8 {[%emt 0:00:04]} 36. g4 {[%emt 0:00:13]} Bh4 {[%emt 0:01:50]} 37. Re2 {[%emt 0:00:07]} f6 {[%emt 0:00:08]} 38. Nc5 {[%emt 0:01:20]} Re8 {[%emt 0:01:11]} 39. Nd3 {[%emt 0:00:31]} Qd7 {[%emt 0:00:36]} 40. Nf4 {[%emt 0:00:32]} f5 {[%emt 0:00:27]} 41. exf5 {[%emt 0:00:32]} exf5 {[%emt 0:00:25]} 42. Rxe8+ {[%emt 0:00:16]} Qxe8 {[%emt 0:00:05]} 43. gxf5 {[%emt 0:00:23]} Qe4 {[%emt 0:00:38]} 44. Nd3 {[%emt 0:00:27]} Qe2+ {[%emt 0:00:17]} 45. Nf2 {[%emt 0:00:01]} Bf6 {[%emt 0:01:12]} 46. Kg3 {[%emt 0:00:36]} Qxb2 {[%emt 0:00:33]} 47. Ng4 {[%emt 0:00:24]} Qxa3 {[%emt 0:00:23]} 48. Re3 {[%emt 0:01:16]} a5 {[%emt 0:01:00]} 49. Kf3 {[%emt 0:00:22]} Bg5 {[%emt 0:00:19]} 50. Re8+ {[%emt 0:00:33]} Kc7 {[%emt 0:00:11]} 51. Rg8 {[%emt 0:00:17]} Qxc3+ {[%emt 0:00:09]} 52. Ke4 {[%emt 0:00:01]} Qc6+ {[%emt 0:01:07]} 53. Ke5 {[%emt 0:01:06]} Qd6+ {[%emt 0:00:14]} 54. Ke4 {[%emt 0:00:01]} Qf4+ {[%emt 0:00:08]} 0-1

[Event "1st Bella Italia International 2022"]
[Site "Lignano"]
[Date "2022.08.21"]
[Round "7.17"]
[White "Heredia Serrano, Carla"]
[Black "Sala, Giulia"]
[Result "1-0"]
[ECO "C52"]
[WhiteElo "2090"]
[BlackElo "1958"]
[Annotator "NA RC"]
[PlyCount "45"]
[EventDate "2022.08.18"]
[EventCountry "ITA"]
[SourceTitle "playchess.com"]
[Source "ChessBase"]
[SourceQuality "1"]
[TimeControl "5400+30"]

1. e4 {[%emt 0:04:50]} e5 {[%emt 0:00:57]} 2. Nf3 {[%emt 0:00:40]} Nc6 {[%emt 0:00:04]} 3. Bc4 {[%emt 0:00:16]} Bc5 {[%emt 0:00:05]} 4. b4 {[%emt 0:00:04]} Bxb4 {[%emt 0:00:11]} 5. c3 {[%emt 0:00:04]} Ba5 {[%emt 0:00:21]} 6. d4 {[%emt 0:01:00]} exd4 {[%emt 0:00:09]} 7. O-O {[%emt 0:02:23]} d6 {[%emt 0:06:27]} 8. Qb3 {[%emt 0:05:40]} Qe7 {[%emt 0:02:06]} 9. cxd4 {[%emt 0:00:23]} Bb6 {[%emt 0:02:37]} 10. e5 {[%emt 0:24:32]} Na5 {[%emt 0:31:06]} 11. Qc2 {[%emt 0:01:07]} Nxc4 {[%emt 0:05:00]} 12. Qxc4 {[%emt 0:00:02]} dxe5 {[%emt 0:03:50]} 13. Ba3 {[%emt 0:01:52]} Qe6 {[%emt 0:05:57]} 14. d5 {[%emt 0:05:03]} Qg4 {[%emt 0:01:36]} 15. Qc3 {[%emt 0:10:43]} f6 {[%emt 0:03:54]} 16. Nbd2 {[%emt 0:05:58]} Qd7 {[%emt 0:03:02]} 17. Rae1 {[%emt 0:10:54]} Nh6 {[%emt 0:01:43]} 18. Nxe5 {[%emt 0:00:31]} fxe5 {[%emt 0:00:26]} 19. Qxe5+ {[%emt 0:06:30]} Kf7 {[%emt 0:00:14]} 20. Qh5+ {[%emt 0:00:22]} g6 {[%emt 0:01:35]} 21. Qxh6 {[%emt 0:00:04]} Re8 {[%emt 0:01:24]} 22. Qxh7+ {[%emt 0:00:42]} Kf6 {[%emt 0:00:12]} 23. Bb2+ {[%emt 0:00:59]} 1-0

[Event "1st Bella Italia International 2022"]
[Site "Lignano"]
[Date "2022.08.21"]
[Round "7.18"]
[White "Perossa, Nicolas"]
[Black "Haller, Quentin"]
[Result "1/2-1/2"]
[ECO "B17"]
[WhiteElo "2107"]
[BlackElo "1995"]
[Annotator "NA RC"]
[PlyCount "89"]
[EventDate "2022.08.18"]
[EventCountry "ITA"]
[SourceTitle "playchess.com"]
[Source "ChessBase"]
[SourceQuality "1"]
[TimeControl "5400+30"]

1. e4 {[%emt 0:00:01]} c6 {[%emt 0:00:07]} 2. d4 {[%emt 0:00:06]} d5 {[%emt 0:00:07]} 3. Nc3 {[%emt 0:00:15]} dxe4 {[%emt 0:00:08]} 4. Nxe4 {[%emt 0:00:13]} Nd7 {[%emt 0:00:15]} 5. Nf3 {[%emt 0:00:20]} Ngf6 {[%emt 0:00:10]} 6. Ng3 {[%emt 0:00:28]} e6 {[%emt 0:00:10]} 7. Be3 {[%emt 0:01:56]} Be7 {[%emt 0:02:28]} 8. Qd2 {[%emt 0:01:52]} b6 {[%emt 0:02:45]} 9. O-O-O {[%emt 0:09:22]} Bb7 {[%emt 0:00:53]} 10. Bd3 {[%emt 0:05:07]} O-O {[%emt 0:04:13]} 11. Ne5 {[%emt 0:02:12]} c5 {[%emt 0:03:48]} 12. Nxd7 {[%emt 0:01:45]} Qxd7 {[%emt 0:01:34]} 13. dxc5 {[%emt 0:01:31]} Qa4 {[%emt 0:00:57]} 14. Kb1 {[%emt 0:01:32]} bxc5 {[%emt 0:04:53]} 15. c4 {[%emt 0:10:14]} Bc6 {[%emt 0:07:45]} 16. f3 {[%emt 0:01:55]} Rab8 {[%emt 0:03:01]} 17. Qc2 {[%emt 0:03:33]} Qxc2+ {[%emt 0:02:35]} 18. Kxc2 {[%emt 0:00:39]} Rb7 {[%emt 0:06:06]} 19. b3 {[%emt 0:04:40]} a5 {[%emt 0:05:54]} 20. a4 {[%emt 0:01:36]} Rfb8 {[%emt 0:06:10]} 21. Bf4 {[%emt 0:00:25]} Rd8 {[%emt 0:00:31]} 22. Ne2 {[%emt 0:14:24]} Nd7 {[%emt 0:03:46]} 23. Nc3 {[%emt 0:01:30]} Nb8 {[%emt 0:02:01]} 24. Be4 {[%emt 0:17:42]} Rc8 {[%emt 0:11:14]} 25. Bxb8 {[%emt 0:07:58]} Bxe4+ {[%emt 0:01:38]} 26. fxe4 {[%emt 0:00:01]} Rcxb8 {[%emt 0:00:14]} 27. Nb5 {[%emt 0:00:16]} Rd8 {[%emt 0:02:03]} 28. Rxd8+ {[%emt 0:01:23]} Bxd8 {[%emt 0:00:06]} 29. Rd1 {[%emt 0:08:19]} Be7 {[%emt 0:00:16]} 30. Rd3 {[%emt 0:01:16]} f6 {[%emt 0:05:27]} 31. h3 {[%emt 0:00:27]} h5 {[%emt 0:00:39]} 32. g3 {[%emt 0:01:57]} g5 {[%emt 0:00:32]} 33. Nd6 {[%emt 0:00:57]} Rd7 {[%emt 0:01:55]} 34. Nb5 {[%emt 0:00:49]} Rb7 {[%emt 0:02:04]} 35. g4 {[%emt 0:00:25]} h4 {[%emt 0:02:13]} 36. Rd2 {[%emt 0:00:49]} Kh7 {[%emt 0:00:55]} 37. Nd6 {[%emt 0:00:22]} Rd7 {[%emt 0:00:44]} 38. Nc8 {[%emt 0:00:33]} Rxd2+ {[%emt 0:00:29]} 39. Kxd2 {[%emt 0:00:01]} Bd8 {[%emt 0:00:38]} 40. Ke3 {[%emt 0:01:06]} Kg6 {[%emt 0:01:04]} 41. Na7 {[%emt 0:00:19]} f5 {[%emt 0:02:39]} 42. Nc6 {[%emt 0:00:42]} f4+ {[%emt 0:02:01]} 43. Kf3 {[%emt 0:00:23]} Bc7 {[%emt 0:00:24]} 44. Na7 {[%emt 0:00:36]} Kf6 {[%emt 0:00:35]} 45. Nc6 {[%emt 0:00:25]} 1/2-1/2

[Event "1st Bella Italia International 2022"]
[Site "Lignano"]
[Date "2022.08.21"]
[Round "7.19"]
[White "Olabe Odriozola, Eduardo"]
[Black "Cristiani, Cesare"]
[Result "0-1"]
[ECO "C00"]
[WhiteElo "1946"]
[BlackElo "2006"]
[Annotator "NA RC"]
[PlyCount "91"]
[EventDate "2022.08.18"]
[EventCountry "ITA"]
[SourceTitle "playchess.com"]
[Source "ChessBase"]
[SourceQuality "1"]
[TimeControl "5400+30"]

1. e4 {[%emt 0:00:04]} e6 {[%emt 0:00:08]} 2. d3 {[%emt 0:00:23]} d5 {[%emt 0:00:08]} 3. Nd2 {[%emt 0:00:05]} Nf6 {[%emt 0:00:08]} 4. Ngf3 {[%emt 0:00:07]} b6 {[%emt 0:00:27]} 5. g3 {[%emt 0:02:01]} Bb7 {[%emt 0:00:11]} 6. e5 {[%emt 0:04:36]} Nfd7 {[%emt 0:00:10]} 7. d4 {[%emt 0:00:08]} c5 {[%emt 0:00:08]} 8. c3 {[%emt 0:00:38]} Be7 {[%emt 0:00:19]} 9. Bd3 {[%emt 0:00:26]} Nc6 {[%emt 0:01:59]} 10. O-O {[%emt 0:00:48]} Qc7 {[%emt 0:01:03]} 11. Re1 {[%emt 0:00:32]} h6 {[%emt 0:01:53]} 12. Nf1 {[%emt 0:01:27]} g5 {[%emt 0:02:53]} 13. h3 {[%emt 0:00:33]} O-O-O {[%emt 0:00:31]} 14. a3 {[%emt 0:02:11]} Rdg8 {[%emt 0:00:15]} 15. Be3 {[%emt 0:11:29]} c4 {[%emt 0:08:09]} 16. Bc2 {[%emt 0:02:52]} h5 {[%emt 0:00:08]} 17. N3h2 {[%emt 0:02:40]} Kb8 {[%emt 0:23:06]} 18. Qe2 {[%emt 0:05:21]} Na5 {[%emt 0:01:24]} 19. Nd2 {[%emt 0:01:44]} Ka8 {[%emt 0:02:21]} 20. Rec1 {[%emt 0:04:03]} f5 {[%emt 0:06:27]} 21. exf6 {[%emt 0:00:42]} Nxf6 {[%emt 0:00:32]} 22. Ndf3 {[%emt 0:07:47]} Nd7 {[%emt 0:00:58]} 23. Bd2 {[%emt 0:02:04]} g4 {[%emt 0:01:17]} 24. hxg4 {[%emt 0:04:54]} hxg4 {[%emt 0:01:11]} 25. Ne5 {[%emt 0:00:39]} Nxe5 {[%emt 0:01:25]} 26. Bf4 {[%emt 0:10:20]} Bd6 {[%emt 0:01:14]} 27. dxe5 {[%emt 0:00:24]} Bc5 {[%emt 0:02:35]} 28. Re1 {[%emt 0:03:42]} d4 {[%emt 0:00:54]} 29. Be4 {[%emt 0:00:10]} d3 {[%emt 0:00:19]} 30. Bxb7+ {[%emt 0:00:14]} Qxb7 {[%emt 0:00:41]} 31. Qe4 {[%emt 0:00:02]} Bxf2+ {[%emt 0:01:45]} 32. Kxf2 {[%emt 0:01:25]} Rxh2+ {[%emt 0:00:11]} 33. Ke3 {[%emt 0:00:36]} d2 {[%emt 0:04:35]} 34. Qxb7+ {[%emt 0:01:03]} Kxb7 {[%emt 0:00:10]} 35. Re2 {[%emt 0:07:42]} Rgh8 {[%emt 0:01:02]} 36. Rf1 {[%emt 0:00:20]} Nb3 {[%emt 0:00:19]} 37. Ref2 {[%emt 0:02:44]} Rxf2 {[%emt 0:01:26]} 38. Kxf2 {[%emt 0:03:06]} Rh2+ {[%emt 0:00:08]} 39. Ke3 {[%emt 0:02:00]} Rg2 {[%emt 0:02:02]} 40. Rd1 {[%emt 0:02:35]} Kc6 {[%emt 0:00:11]} 41. a4 {[%emt 0:00:20]} Kb7 {[%emt 0:00:18]} 42. Bg5 {[%emt 0:00:36]} Rxg3+ {[%emt 0:00:39]} 43. Kf4 {[%emt 0:00:53]} Rg2 {[%emt 0:00:17]} 44. Bh4 {[%emt 0:00:30]} Nc5 {[%emt 0:00:35]} 45. Ke3 {[%emt 0:00:34]} Nxa4 {[%emt 0:01:19]} 46. Kd4 {[%emt 0:16:00]} 0-1

[Event "1st Bella Italia International 2022"]
[Site "Lignano"]
[Date "2022.08.21"]
[Round "7.20"]
[White "Giraldi, Edoardo"]
[Black "Rotolante, Luca"]
[Result "1/2-1/2"]
[ECO "C00"]
[WhiteElo "1909"]
[BlackElo "2010"]
[Annotator "NA RC"]
[PlyCount "102"]
[EventDate "2022.08.18"]
[EventCountry "ITA"]
[SourceTitle "playchess.com"]
[Source "ChessBase"]
[SourceQuality "1"]
[TimeControl "5400+30"]

1. e4 {[%emt 0:00:34]} e6 {[%emt 0:03:01]} 2. Nf3 {[%emt 0:00:52]} d5 {[%emt 0:00:13]} 3. Nc3 {[%emt 0:00:14]} d4 {[%emt 0:00:22]} 4. Ne2 {[%emt 0:00:06]} c5 {[%emt 0:00:05]} 5. c3 {[%emt 0:00:11]} Nf6 {[%emt 0:00:39]} 6. e5 {[%emt 0:06:56]} Nfd7 {[%emt 0:00:06]} 7. cxd4 {[%emt 0:01:42]} cxd4 {[%emt 0:00:05]} 8. Nexd4 {[%emt 0:00:20]} Nxe5 {[%emt 0:00:12]} 9. Bb5+ {[%emt 0:01:48]} Nec6 {[%emt 0:01:00]} 10. Nxc6 {[%emt 0:06:01]} bxc6 {[%emt 0:00:13]} 11. Bc4 {[%emt 0:01:32]} Bd6 {[%emt 0:00:10]} 12. O-O {[%emt 0:05:02]} O-O {[%emt 0:00:40]} 13. d4 {[%emt 0:00:30]} Nd7 {[%emt 0:00:21]} 14. Bg5 {[%emt 0:02:47]} Qc7 {[%emt 0:00:18]} 15. Qe2 {[%emt 0:16:31]} Bb7 {[%emt 0:04:40]} 16. Rac1 {[%emt 0:23:36]} Rae8 {[%emt 0:03:33]} 17. Rfe1 {[%emt 0:10:44]} e5 {[%emt 0:07:03]} 18. dxe5 {[%emt 0:11:30]} Nxe5 {[%emt 0:00:06]} 19. Nxe5 {[%emt 0:01:49]} Rxe5 {[%emt 0:03:08]} 20. Be3 {[%emt 0:00:16]} c5 {[%emt 0:00:37]} 21. Rcd1 {[%emt 0:06:12]} Qc6 {[%emt 0:01:07]} 22. Qf3 {[%emt 0:00:16]} Bc7 {[%emt 0:04:15]} 23. Qxc6 {[%emt 0:00:43]} Bxc6 {[%emt 0:00:05]} 24. Bd2 {[%emt 0:00:52]} Rh5 {[%emt 0:02:56]} 25. g3 {[%emt 0:00:37]} Bf3 {[%emt 0:00:22]} 26. Rc1 {[%emt 0:00:29]} Be5 {[%emt 0:01:34]} 27. Bc3 {[%emt 0:00:25]} Bd4 {[%emt 0:00:19]} 28. Be2 {[%emt 0:00:53]} Bxe2 {[%emt 0:01:32]} 29. Rxe2 {[%emt 0:00:01]} Rd5 {[%emt 0:00:54]} 30. Kg2 {[%emt 0:00:51]} Bxc3 {[%emt 0:02:37]} 31. Rxc3 {[%emt 0:00:04]} Rb8 {[%emt 0:00:52]} 32. Rec2 {[%emt 0:01:04]} Kf8 {[%emt 0:00:15]} 33. Rxc5 {[%emt 0:00:18]} Rxc5 {[%emt 0:00:04]} 34. Rxc5 {[%emt 0:00:05]} Rb7 {[%emt 0:00:13]} 35. b3 {[%emt 0:00:17]} Ke7 {[%emt 0:00:03]} 36. Kf3 {[%emt 0:00:11]} Kd6 {[%emt 0:00:03]} 37. Rc4 {[%emt 0:00:31]} Re7 {[%emt 0:00:10]} 38. h4 {[%emt 0:01:38]} Kd5 {[%emt 0:00:29]} 39. Ra4 {[%emt 0:00:18]} Kc5 {[%emt 0:01:09]} 40. g4 {[%emt 0:00:28]} f6 {[%emt 0:00:12]} 41. Kf4 {[%emt 0:00:33]} Kb5 {[%emt 0:00:33]} 42. f3 {[%emt 0:00:34]} a5 {[%emt 0:00:13]} 43. g5 {[%emt 0:00:29]} fxg5+ {[%emt 0:00:06]} 44. hxg5 {[%emt 0:00:07]} Re2 {[%emt 0:02:49]} 45. Kg4 {[%emt 0:00:53]} g6 {[%emt 0:00:26]} 46. f4 {[%emt 0:00:43]} Re1 {[%emt 0:00:30]} 47. Kf3 {[%emt 0:00:21]} Re7 {[%emt 0:00:34]} 48. Rc4 {[%emt 0:00:37]} Kb6 {[%emt 0:00:29]} 49. Ra4 {[%emt 0:00:41]} Kb5 {[%emt 0:00:07]} 50. Rc4 {[%emt 0:00:38]} Kb6 {[%emt 0:00:04]} 51. Ra4 {[%emt 0:00:35]} Kb5 {[%emt 0:00:06]} 1/2-1/2

[Event "1st Bella Italia International 2022"]
[Site "Lignano"]
[Date "2022.08.22"]
[Round "8.1"]
[White "Karthik Venkataraman"]
[Black "Visakh N R"]
[Result "1-0"]
[ECO "C95"]
[WhiteElo "2483"]
[BlackElo "2503"]
[Annotator "TA"]
[PlyCount "75"]
[EventDate "2022.08.18"]
[EventCountry "ITA"]
[SourceTitle "playchess.com"]
[Source "ChessBase"]
[SourceQuality "1"]
[TimeControl "5400+30"]

{[%evp 30,75,42,11,20,0,6,-4,-10,0,-12,-7,-25,-18,77,70,102,102,80,56,299,290,275,266,342,366,353,342,380,371,552,514,477,358,352,352,335,319,337,331,537,514,1447,1260,2093,1800,1795,1730]} 1. e4 {[%emt 0:01:03]} e5 {[%emt 0:00:07]} 2. Nf3 {[%emt 0:00:04]} Nc6 {[%emt 0:00:05]} 3. Bb5 {[%emt 0:00:04]} a6 {[%emt 0:00:04]} 4. Ba4 {[%emt 0:00:05]} Nf6 {[%emt 0:00:04]} 5. O-O {[%emt 0:00:05]} Be7 {[%emt 0:00:04]} 6. Re1 {[%emt 0:00:04]} b5 {[%emt 0:00:04]} 7. Bb3 {[%emt 0:00:03]} d6 {[%emt 0:00:04]} 8. c3 {[%emt 0:00:05]} O-O {[%emt 0:00:05]} 9. h3 {[%emt 0:00:02]} Nb8 {[%emt 0:00:03]} 10. d4 {[%emt 0:00:05]} Nbd7 {[%emt 0:00:04]} 11. Nbd2 {[%emt 0:00:05]} Bb7 {[%emt 0:00:04]} 12. Bc2 {[%emt 0:00:05]} Re8 {[%emt 0:00:04]} 13. Nf1 {[%emt 0:00:05]} Bf8 {[%emt 0:00:03]} 14. Ng3 {[%emt 0:00:05]} g6 {[%emt 0:00:06]} 15. a4 {[%emt 0:00:04]} Bg7 {[%emt 0:00:05]} 16. d5 {[%emt 0:00:04]} Qb8 {[%emt 0:04:55] C95: Closed Ruy Lopez: Breyer Variation with 10 d4.} 17. c4 {[%emt 0:00:05]} c6 {[%emt 0:13:12]} 18. b3 {[%emt 0:00:13][%cal Bb2b3,Bb3c4][%mdl 32]} bxc4 {[%emt 0:00:46] The position is equal.} 19. bxc4 {[%emt 0:00:05]} a5 {[%emt 0:00:23]} 20. Ba3 {[%emt 0:06:20]} Bf8 {[%emt 0:03:13]} 21. Ne2 {[%emt 0:04:12] [#]} Ba6 $146 {[%emt 0:12:13]} (21... Rc8 $11) ({Predecessor:} 21... Qc7 22. Nc3 Ba6 23. Bb3 Nc5 24. Bxc5 dxc5 25. Nd2 Rab8 26. dxc6 Qxc6 27. Nd5 Bh6 {½-½ (45) Shirov,A (2741)-Roiz,M (2680) Cala Mayor 2008}) 22. dxc6 $16 {[%emt 0:04:45]} Nb6 {[%emt 0:02:55] [#]} 23. Nc3 $1 {[%emt 0:00:14] Threatens to win with Nd5. White is more active.} Nxc4 {[%emt 0:04:42]} 24. Bd3 {[%emt 0:04:04]} Rc8 $2 {[%emt 0:20:09] [#] This costs Black the game.} (24... Nxa3 $14 25. Rxa3 Bxd3 26. Qxd3 d5) 25. Nd5 $1 $18 {[%emt 0:01:28]} Nxd5 {[%emt 0:00:04]} 26. exd5 {[%emt 0:00:05]} Qa7 {[%emt 0:00:13]} 27. Bxc4 {[%emt 0:03:24]} Bxc4 {[%emt 0:00:04]} 28. Rc1 {[%emt 0:00:04]} Qa6 {[%emt 0:03:48]} 29. Ng5 {[%emt 0:03:11][%cal Bf3g5,Bg5e4,Be4f6,Bf6d7][%mdl 32]} Bh6 {[%emt 0:10:12]} (29... Be7 $142) 30. h4 {[%emt 0:10:50]} f6 {[%emt 0:09:04]} 31. Rxc4 {[%emt 0:09:34]} Qxc4 {[%emt 0:02:49]} 32. Ne4 {[%emt 0:00:07]} Bf8 {[%emt 0:06:03]} 33. Nxf6+ {[%emt 0:01:08]} ({Not} 33. Bxd6 Kh8 $16) 33... Kh8 {[%emt 0:00:39]} 34. Nd7 {[%emt 0:02:25]} Qa2 $2 {[%emt 0:06:54]} (34... Qxh4 {was worth a try.} 35. Nb6 Kg8 36. Nxa8 Rxa8) 35. Qf3 {[%emt 0:02:17][%cal Oa3d6] Hoping for Bxd6! White is clearly winning.} Be7 {[%emt 0:03:57] [#]} (35... Qd2 $142) 36. Bxd6 $1 {[%emt 0:01:11][%mdl 576] Deflection, Decoy} Bxd6 {[%emt 0:00:24]} (36... Rf8 37. Bxe5+) 37. Qf6+ {[%emt 0:00:04]} Kg8 {[%emt 0:00:02]} 38. Qxd6 {[%emt 0:00:24] Weighted Error Value: White=0.12 (very precise) /Black=0.63} 1-0

[Event "1st Bella Italia International 2022"]
[Site "Lignano"]
[Date "2022.08.22"]
[Round "8.2"]
[White "Ghosh, Diptayan"]
[Black "Das, Sayantan"]
[Result "1/2-1/2"]
[WhiteElo "2538"]
[BlackElo "2449"]
[Annotator "TA"]
[PlyCount "34"]
[EventDate "2022.08.18"]
[EventCountry "ITA"]
[SourceTitle "playchess.com"]
[Source "ChessBase"]
[SourceQuality "1"]
[TimeControl "5400+30"]

{[%evp 11,19,20,22,12,15,12,16,15,27,19]} 1. d4 {[%emt 0:00:22]} d5 {[%emt 0:00:20]} 2. c4 {[%emt 0:00:16]} dxc4 {[%emt 0:00:10]} 3. Nf3 {[%emt 0:00:21]} Nf6 {[%emt 0:00:08]} 4. e3 {[%emt 0:00:13]} e6 {[%emt 0:00:07]} 5. Bxc4 {[%emt 0:00:05]} c5 {[%emt 0:00:19]} 6. O-O {[%emt 0:00:19]} a6 {[%emt 0:00:04]} 7. Be2 {[%emt 0:09:25] D27: Queen's Gambit Accepted: Classical main line: 7 e4!? and 7 a4.} Nbd7 {[%emt 0:01:17]} 8. b3 {[%emt 0:00:55]} b6 {[%emt 0:04:20]} 9. Bb2 {[%emt 0:01:13]} Bb7 {[%emt 0:00:11]} 10. Nbd2 {[%emt 0:04:22] [#] An uneventful encounter.  Weighted Error Value: White=0.05 (flawless) /Black=0.00 (flawless)} {Predecessor:} Be7 $146 11. Nc4 O-O 12. Rc1 Rc8 13. dxc5 Rxc5 14. Bd4 Rc8 15. Qd2 b5 16. Na5 Bd5 17. Rxc8 Qxc8 {0-1 (57) Andreikin,D (2729)-Aronian,L (2785) Chess.com INT 2022} 1/2-1/2

[Event "1st Bella Italia International 2022"]
[Site "Lignano"]
[Date "2022.08.22"]
[Round "8.3"]
[White "Lumachi, Gabriele"]
[Black "Aaron, Deepak"]
[Result "0-1"]
[ECO "A57"]
[WhiteElo "2355"]
[BlackElo "2221"]
[Annotator "TA"]
[PlyCount "72"]
[EventDate "2022.08.18"]
[EventCountry "ITA"]
[SourceTitle "playchess.com"]
[Source "ChessBase"]
[SourceQuality "1"]
[TimeControl "5400+30"]

{[%evp 11,72,30,34,26,42,0,0,0,0,0,0,0,0,0,0,-9,-16,-29,-7,-11,-8,-109,-93,-231,-237,-260,-247,-268,-204,-267,-256,-252,-145,-127,-85,-133,-128,-138,-128,-241,-227,-366,-329,-406,-409,-712,-718,-1518,-1532,-1415,-1397,-1323,-1184,-928,-472,-466,-479,-1808,-1806,-1690,-1633,-29987,-412]} 1. d4 {[%emt 0:00:03]} Nf6 {[%emt 0:00:07]} 2. c4 {[%emt 0:00:06]} c5 {[%emt 0:00:09]} 3. d5 {[%emt 0:00:09]} b5 {[%emt 0:00:07]} 4. cxb5 {[%emt 0:00:05]} a6 {[%emt 0:00:30]} 5. e3 {[%emt 0:00:05][%cal Be2e3,Be3e4,Be4e5][%mdl 32]} e6 {[%emt 0:01:05]} 6. dxe6 {[%emt 0:05:36]} fxe6 {[%emt 0:00:14]} 7. Nc3 {[%emt 0:02:43] A57: Benko/Volga Gambit.} d5 {[%emt 0:00:19]} 8. e4 {[%emt 0:05:59]} d4 {[%emt 0:15:27]} 9. e5 {[%emt 0:00:12] [#] The position is equal.} Nd5 $146 {[%emt 0:02:22]} ({Predecessor:} 9... Nfd7 10. Qh5+ g6 11. Qf3 Ra7 12. Ne4 axb5 13. Qb3 Qa5+ 14. Bd2 c4 15. Qg3 Qc7 {0-1 (36) Smyth,P (1247)-Pljusnin,V (1880) IECC email 1999}) 10. Ne4 {[%emt 0:24:29]} Nd7 {[%emt 0:04:48][%cal Bb8d7,Bd7e5,Be5c4][%mdl 32]} 11. bxa6 {[%emt 0:00:29]} Bxa6 {[%emt 0:15:12]} 12. Bxa6 {[%emt 0:03:05]} Qa5+ {[%emt 0:01:00]} 13. Bd2 {[%emt 0:01:48]} Qxa6 {[%emt 0:00:07]} 14. Ne2 {[%emt 0:00:06]} Nxe5 {[%emt 0:02:27]} 15. O-O {[%emt 0:00:18]} Be7 $36 {[%emt 0:00:52][%mdl 2048] Black has the initiative.} 16. Nf4 {[%emt 0:14:27]} (16. b4 $1 $11 {keeps the balance.}) 16... O-O $17 {[%emt 0:01:50]} 17. Nxd5 {[%emt 0:03:10]} (17. Ne2 $17) 17... exd5 $19 {[%emt 0:00:06]} 18. Qh5 {[%emt 0:01:22]} Qe6 {[%emt 0:04:52]} ({Worse is} 18... dxe4 19. Qxe5 Qb7 20. Rae1 $15) 19. Ng3 {[%emt 0:05:55]} Nc4 {[%emt 0:02:45]} 20. Bg5 {[%emt 0:03:51] [#]} Bxg5 $1 {[%emt 0:06:01]} ({But not} 20... Nxb2 21. Rfe1 Qf7 22. Bxe7 $16 (22. Rxe7 Qxh5 23. Nxh5 Rf7 $16)) 21. Qxg5 {[%emt 0:00:09]} Qe5 {[%emt 0:00:46]} (21... Nxb2 $19 {White must now prevent ...Nd3.} 22. Rae1 h6) 22. Qc1 $17 {[%emt 0:03:16]} Rac8 {[%emt 0:00:58] 0x0.001b8068b37edp-1022s more active pieces. The white rooks are badly placed.} 23. Qc2 {[%emt 0:09:54]} ({Better is} 23. b3 Nd6 24. Qe1) 23... Nd6 {[%emt 0:04:07]} 24. Rae1 {[%emt 0:02:35]} Qf6 {[%emt 0:01:28]} 25. Qa4 {[%emt 0:03:34]} (25. Qd2 $17) 25... d3 $19 {[%emt 0:01:25][%cal Bd4d3,Bd3d2][%mdl 32]} 26. Qg4 {[%emt 0:01:05]} (26. Rd1 {was the only defense.} c4 27. b3) 26... Rce8 {[%emt 0:04:46] [#] And now ...Rxe1 would win.} 27. Rxe8 {[%emt 0:04:43]} Rxe8 {[%emt 0:01:26]} 28. Qa4 {[%emt 0:00:11]} (28. Rd1 $142 Qxb2 29. Qf3) 28... d2 {[%emt 0:04:10]} 29. Rd1 {[%emt 0:00:50]} Re1+ {[%emt 0:06:50]} 30. Nf1 {[%emt 0:00:06]} Rxd1 {[%emt 0:00:27]} 31. Qxd1 {[%emt 0:01:03][%mdl 4096] Endgame KQN-KQN} Ne4 {[%emt 0:00:03]} 32. Qe2 {[%emt 0:00:53]} Qd4 {[%emt 0:03:54]} 33. Ne3 {[%emt 0:00:30]} Qxb2 {[%emt 0:00:11] ...Nc3 is the strong threat.} 34. g3 {[%emt 0:01:51]} (34. Nd1 $142 Qc1 35. Kf1) 34... Nc3 {[%emt 0:03:00]} 35. Qg4 {[%emt 0:00:41]} Qb1+ {[%emt 0:00:51]} 36. Nf1 {[%emt 0:00:28]} Qxf1+ {[%emt 0:00:46] Weighted Error Value: White=1.03/Black=0.29 (precise)} 0-1